Cogmind - Beta 15 @@@ ROGUE MODE // 2025.06.28 @ 03:53:56 Player: 5N-P3R Result: Escaped! Performance ------------- Evolutions (9) 4500 Regions Visited (19) 3800 Robots Destroyed (239) 1195 Value Destroyed (11958) 11958 Prototype IDs (60) 1200 Alien Tech Used (0) 0 Bonus (5182) 5182 TOTAL SCORE: 27835 Bonus ------- Follower Combat Kills 350 Entered Garrisons 200 Used RIF Installer 1000 Network Hubs Disabled 400 Aligned with FarCom 300 Win 3000 Friendly Fire -68 Cogmind --------- Core Integrity 1423/1600 Matter 243/300 Energy 178/190 System Corruption 3% Temperature Cool (6) Movement Walking (120) Location To Epsilon Eridani Parts ------- > --- POWER (1) -------- Light Quantum Reactor > --- PROPULSION (4) --- Myomer Leg Improved Thunder Leg Improved Thunder Leg High-density Centrium Leg > --- UTILITY (16) ----- Advanced Heat Sink High-capacity Storage Unit Spectral Analyzer Advanced Targeting Computer Advanced Targeting Computer Advanced Target Analyzer Core Analyzer Core Analyzer Advanced Recoil Stabilizer Weapon Cycler Experimental Transmission Jammer Improved Reaction Control System Improved Core Shielding Improved Focal Shield Thermal Barrier Improved Hacking Suite > --- WEAPON (4) ------- Heavy Machine Gun Heavy Machine Gun Advanced KE Penetrator Enhanced Hardcell Cannon > --- INVENTORY (20) --- Light Antimatter Reactor Light Quantum Reactor Improved Quantum Reactor Medium Treads Advanced Heat Sink Improved Matter Compressor (300) Spectral Analyzer Experimental Transmission Jammer Heavy Reactive Plating Heavy Reactive Plating Experimental Thermal Shield Long-range Tractor Beam Advanced Field Recycling Unit (31) Heavy Machine Gun Peak State ------------ > --- POWER ------------ Light Quantum Reactor > --- PROPULSION ------- Myomer Leg Improved Thunder Leg Improved Thunder Leg High-density Centrium Leg > --- UTILITY ---------- Advanced Heat Sink High-capacity Storage Unit Spectral Analyzer Modified TNC Advanced Targeting Computer Advanced Targeting Computer Advanced Targeting Computer Advanced Target Analyzer Advanced Target Analyzer Weapon Cycler Experimental Transmission Jammer Improved Core Shielding Improved Focal Shield Thermal Barrier Improved Hacking Suite Improved System Shield > --- WEAPON ----------- Heavy Machine Gun Heavy Machine Gun Advanced KE Penetrator Enhanced Hardcell Cannon > --- INVENTORY -------- Light Antimatter Reactor Light Quantum Reactor Improved Quantum Reactor Medium Treads Improved Matter Compressor Spectral Analyzer Experimental Transmission Jammer Experimental Transmission Jammer Heavy Reactive Plating Heavy Reactive Plating Experimental Thermal Shield Long-range Tractor Beam Advanced Field Recycling Unit Heavy Machine Gun [Rating: 169] Favorites ----------- Power Light Fission Core Engine Light Deuterium Engine Power Core Light Fission Core Reactor Light Antimatter Reactor Propulsion Light Treads Treads Light Treads Leg Improved Thunder Leg Wheel Wheel Utility Modified TNC Device Weapon Cycler Storage High-capacity Storage Unit Processor Modified TNC Hackware Improved Hacking Suite Protection Improved Core Shielding Weapon Heavy Machine Gun Energy Gun Medium Laser Ballistic Gun Heavy Machine Gun Ballistic Cannon Mini Assault Cannon Launcher Precision Rocket Launcher Special Weapon Mining Laser Special Melee Weapon Datajack Build | -11 -10 -10 -10 -9 -8 -8 -8 -8 -7 -6 -5 -5 -5 -5 -5 -4 -3 -2 -1 ------- Run | Yrd Mat Min Exi Min Mat Gar Mat Sto Fac Fac Fac Ext Cet Arc Hub Fac Res Res Acc Slots Evolved 18 | . . . . . 4 . . . 2 2 2 . . . . 2 2 2 2 Power . | . . . . . . . . . . . . . . . . . . . . Propulsion 2 | . . . . . 1 . . . 1 . . . . . . . . . . Utility 14 | . . . . . 2 . . . 1 1 2 . . . . 2 2 2 2 Weapon 2 | . . . . . 1 . . . . 1 . . . . . . . . . Parts Attached 177 | 8 4 5 2 . 7 4 2 5 17 23 7 7 4 2 7 17 4 26 26 Power 14 | 1 . 1 . . 1 . . 1 1 1 . 1 . 1 1 2 . 2 1 Engine 7 | 1 . 1 . . 1 . . 1 . . . . . 1 1 1 . . . Core 3 | . . . . . . . . . 1 1 . 1 . . . . . . . Reactor 4 | . . . . . . . . . . . . . . . . 1 . 2 1 Propulsion 42 | 3 . 1 . . 1 1 1 1 7 7 . 2 . . 3 3 1 6 5 Treads 34 | 1 . 1 . . 1 1 1 1 7 6 . 2 . . 3 3 1 5 1 Leg 6 | . . . . . . . . . . 1 . . . . . . . 1 4 Wheel 2 | 2 . . . . . . . . . . . . . . . . . . . Hover . | . . . . . . . . . . . . . . . . . . . . Flight . | . . . . . . . . . . . . . . . . . . . . Utility 73 | 2 3 1 1 . 3 3 . . 2 5 6 2 3 1 1 11 1 12 16 Device 40 | 1 1 . . . 1 1 . . . 3 3 1 2 . 1 8 1 7 10 Storage 6 | 1 1 . . . . 1 . . . . . . . . . 3 . . . Processor 14 | . 1 . 1 . . . . . . 1 3 . . . . . . 2 6 Hackware 3 | . . . . . 1 . . . . 1 . . . 1 . . . . . Protection 10 | . . 1 . . 1 1 . . 2 . . 1 1 . . . . 3 . Artifact . | . . . . . . . . . . . . . . . . . . . . Weapon 48 | 2 1 2 1 . 2 . 1 3 7 10 1 2 1 . 2 1 2 6 4 Energy Gun 1 | 1 . . . . . . . . . . . . . . . . . . . Energy Cannon . | . . . . . . . . . . . . . . . . . . . . Ballistic Gun 27 | 1 . 2 . . 2 . 1 3 4 4 . 1 1 . . 1 1 3 3 Ballistic Cannon 13 | . . . . . . . . . 1 4 . 1 . . 2 . 1 3 1 Launcher 5 | . . . . . . . . . 2 2 1 . . . . . . . . Special Weapon 1 | . 1 . . . . . . . . . . . . . . . . . . Impact Weapon . | . . . . . . . . . . . . . . . . . . . . Slashing Weapon . | . . . . . . . . . . . . . . . . . . . . Piercing Weapon . | . . . . . . . . . . . . . . . . . . . . Special Melee Weapon 1 | . . . 1 . . . . . . . . . . . . . . . . Unidentified Prototypes 19 | . . . . . . . . . 2 3 1 . 2 . . 4 . 3 4 Parts Lost 66 | . . 3 . . . 2 1 3 7 2 . 3 . 2 2 7 3 21 10 Power 8 | . . 1 . . . . . 1 1 . . 1 . 1 . 1 . 1 1 Propulsion 21 | . . . . . . 1 1 . 4 . . 2 . . 1 1 2 7 2 Utility 17 | . . 1 . . . 1 . . 2 1 . . . 1 1 1 . 6 3 Weapon 20 | . . 1 . . . . . 2 . 1 . . . . . 4 1 7 4 Highest Loss Streak 15 | . . 2 . . . 2 1 1 3 1 . 1 . 2 1 3 1 15 4 To Critical Strikes 2 | . . . . . . . . . . . . . . . . . . 1 1 Average Backups 15 | 3 11 10 8 10 9 11 13 15 15 18 18 18 18 18 18 17 15 13 11 Power 1 | . 1 . . 3 3 1 . . 1 1 1 . . . . . 1 . 2 Propulsion 2 | 1 4 2 2 2 1 . . 3 2 4 4 2 2 3 4 3 2 1 . Utility 6 | . 3 3 3 3 4 8 9 7 5 8 8 8 8 4 4 5 5 5 6 Weapon 4 | . 2 2 3 2 1 1 2 4 5 3 5 6 7 9 10 7 6 5 . Tool/Special . | . . . . . . . . . . . . . . . . . . . . Unused Backups 42 | . . 4 . . 3 4 . 4 3 9 1 . 3 2 . . . . 9 Power 9 | . . . . . . 3 . . . 4 . . . . . . . . 2 Propulsion 3 | . . 2 . . . . . . . 1 . . . . . . . . . Utility 19 | . . 1 . . 2 1 . 4 . 2 . . 2 1 . . . . 6 Weapon 11 | . . 1 . . 1 . . . 3 2 1 . 1 1 . . . . 1 Tool/Special . | . . . . . . . . . . . . . . . . . . . . Average Slot Usage (%) 97 | . 100 91 90 100 98 99 99 99 99 99 99 99 98 94 99 97 89 88 94 Engine 3 | . 14 7 14 14 9 9 9 8 6 . . . . 1 5 1 . . . Core 1 | . . . . . . . . . . 6 5 5 5 . . . . . . Treads 23 | . 14 26 28 28 26 27 26 27 29 25 23 22 23 23 23 20 19 14 4 Device 12 | . 13 1 . . 1 4 9 9 2 12 13 12 13 18 16 23 27 23 20 Storage 6 | . 14 14 14 14 9 9 9 9 7 6 5 5 5 5 5 5 4 4 4 Processor 10 | . . . 5 14 9 9 9 9 7 12 20 20 17 11 11 9 4 5 21 Hackware 6 | . . . . . 7 9 9 9 7 6 5 5 5 7 11 10 9 8 7 Protection 3 | . . 10 . . 8 4 . . 11 . . . 1 . . . . 8 6 Ballistic Gun 15 | . 13 21 20 28 26 27 27 26 22 13 10 10 11 11 11 9 8 7 9 Ballistic Cannon 6 | . . . . . . . . . . 12 11 11 11 11 11 9 9 7 6 Peak Build Rating 169 | 7 8 9 14 14 29 31 32 32 40 70 83 85 87 86 89 105 104 140 169 Average Rating 65 | 5 7 8 9 14 25 30 31 29 35 57 80 82 83 80 87 99 102 121 155 On Entrance 51 | . 7 8 7 14 14 29 31 32 30 38 70 82 85 83 86 89 91 101 129 Naked Turns . | . . . . . . . . . . . . . . . . . . . . Heaviest Build 122 | 12 27 29 27 27 37 57 58 58 75 77 78 109 109 89 84 91 96 117 122 Greatest Support 130 | 20 10 40 40 40 60 60 60 60 80 90 90 90 90 90 106 101 101 130 113 Greatest Overweight (x) 2 | 2 2 2 . . . 1 . . 1 1 . 1 1 . . . 1 1 1 Average Overweight (x) . | . 1 . . . . . . . . . . . . . . . . . . Largest Inventory Capacity 20 | 8 15 15 15 15 15 20 20 20 20 20 20 20 20 20 20 20 20 20 20 Average Capacity 19 | 7 13 15 15 15 15 19 20 20 20 20 20 20 20 20 20 20 20 20 20 Most Carried 20 | 7 15 15 15 15 15 20 20 20 20 20 20 20 20 20 20 20 19 20 16 Average Carried 17 | 3 11 14 13 15 14 16 18 19 19 19 19 19 18 19 19 19 17 15 12 Final Capacity 20 | 8 15 15 15 15 15 20 20 20 20 20 20 20 20 20 20 20 20 20 20 Final Carried 20 | 7 14 14 15 15 15 15 20 20 20 20 20 20 18 20 20 19 18 9 16 Class Distribution -------------------- 34% | Skirmisher 25% | Scavenger-Skirmisher 13% | Scavenger-Tank 11% | Hacker-Skirmisher 9% | Mutant 4% | Scavenger-Gunner Dominant Class ---------------- Mutant | -10/Materials Mutant | -10/Mines Mutant | -10/Exiles Mutant | -9/Mines Skirmisher | -8/Materials Skirmisher | -8/Garrison Skirmisher | -8/Materials Scavenger-Skirmisher | -8/Storage Scavenger-Tank | -7/Factory Skirmisher | -6/Factory Skirmisher | -5/Factory Skirmisher | -5/Extension Skirmisher | -5/Cetus Skirmisher | -5/Archives Hacker-Skirmisher | -5/Hub_04(d) Scavenger-Skirmisher | -4/Factory Scavenger-Skirmisher | -3/Research Scavenger-Tank | -2/Research Scavenger-Gunner | -1/Access Resources | -11 -10 -10 -10 -9 -8 -8 -8 -8 -7 -6 -5 -5 -5 -5 -5 -4 -3 -2 -1 ----------- Run | Yrd Mat Min Exi Min Mat Gar Mat Sto Fac Fac Fac Ext Cet Arc Hub Fac Res Res Acc Matter Collected 10451 | 294 182 142 . . 307 300 325 212 971 1205 329 719 353 404 684 1002 359 1297 1366 Remotely 110 | . . . . . . . . . . . . . . . . . . . 110 Salvage Created 9940 | 64 253 147 . . 128 454 619 407 1064 1172 296 662 163 425 482 749 415 1028 1412 Parts 486 | 8 19 1 . . 7 21 36 19 71 62 17 22 7 16 19 42 19 51 49 Haulers Intercepted 7 | . . . . . . . . . 2 1 . . . . 1 . . . 3 Recyclers Shooed 12 | 1 . . . . . . . 1 2 2 . 2 . . . 2 . 1 1 Parts Field Recycled 32 | . . . . . . . . . . . . . 6 7 . . . 4 15 Retrieved Matter 946 | . . . . . . . . . . . . . 249 84 . . . 130 483 Parts Self-Destructed . | . . . . . . . . . . . . . . . . . . . . Prevented . | . . . . . . . . . . . . . . . . . . . . Kills | -11 -10 -10 -10 -9 -8 -8 -8 -8 -7 -6 -5 -5 -5 -5 -5 -4 -3 -2 -1 ------- Run | Yrd Mat Min Exi Min Mat Gar Mat Sto Fac Fac Fac Ext Cet Arc Hub Fac Res Res Acc Combat Hostiles Destroyed 199 | . 7 7 . . 2 11 12 8 21 24 9 17 4 4 9 14 9 16 25 Guns 122 | . 7 7 . . 2 11 12 8 19 10 6 4 2 3 3 6 5 7 10 Cannons 61 | . . . . . . . . . . 11 1 7 2 1 6 8 1 9 15 AOE 16 | . . . . . . . . . 2 3 2 6 . . . . 3 . . Classes Destroyed 19 | 1 3 1 . . 1 1 2 3 3 2 . . . . . . . 1 1 Worker 9 | . . . . . . . . 1 1 4 . . . . 2 . . 1 . Builder 7 | . . . . . . . . . . 2 . . . . . 1 . 2 2 Tunneler 5 | 3 . . . . . . . . 1 1 . . . . . . . . . Hauler 7 | . . . . . . . . . 2 1 . . . . 1 . . . 3 Recycler 3 | . . . . . . . . 1 1 1 . . . . . . . . . Mechanic 1 | . . . . . . . . . 1 . . . . . . . . . . Operator 8 | . 1 . . . 1 . 1 . . . . . . 4 . . . 1 . Watcher 5 | . . . . . . . . 1 . 1 . 1 . . . 1 . 1 . Swarmer 37 | . 2 . . . . 2 . 4 6 3 3 5 . . . . 4 . 8 Grunt 57 | . 5 2 . . . 5 8 1 3 10 4 4 . . 2 3 3 1 6 Brawler 3 | . . . . . . . 1 . . . . 1 . . . . . 1 . Duelist 3 | . . . . . . . . . 1 1 . . . . . . . 1 . Sentry 32 | . . . . . 2 3 2 3 2 3 . 5 . 4 2 2 1 3 . Specialist 2 | . . . . . . . . . . . . . . . . . . 2 . Hunter 10 | . . . . . . . 1 . 2 . . . . . 1 . . 2 4 Programmer 41 | . . . . . . 1 . . 7 6 2 . . . 3 9 1 6 6 Heavy 1 | . . . . . . . . . . . . . . . . . . . 1 Behemoth 4 | . . . . . . . . . . 1 . 2 . . 1 . . . . Cetus Guard 4 | . . . . . . . . . . . . . 4 . . . . . . Assembled 5 | . . 5 . . . . . . . . . . . . . . . . . Best Kill Streak 8 | 2 4 2 . . 1 4 7 5 3 4 4 5 4 3 3 5 4 4 8 Combat Bots Only 7 | . 4 2 . . 1 4 7 4 3 3 4 5 4 2 2 4 4 4 6 Max Kills in Single Turn 3 | 1 1 1 . . 1 1 1 2 2 2 2 3 1 1 2 2 3 2 2 Gunslinging 1 | . . . . . . . . . . . 1 . . . . . . . . Exploded 3 | . . . . . . . . . 2 2 1 3 . . . . 3 . . Melee . | . . . . . . . . . . . . . . . . . . . . Uniques/NPCs Destroyed . | . . . . . . . . . . . . . . . . . . . . Combat | -11 -10 -10 -10 -9 -8 -8 -8 -8 -7 -6 -5 -5 -5 -5 -5 -4 -3 -2 -1 -------- Run | Yrd Mat Min Exi Min Mat Gar Mat Sto Fac Fac Fac Ext Cet Arc Hub Fac Res Res Acc Hostile Shots Fired 1256 | . 25 39 . . . 57 55 23 143 214 14 65 33 14 54 111 66 203 140 Missed 375 | . 11 13 . . . 16 20 7 42 66 3 19 5 6 17 38 21 56 35 Hits 881 | . 14 26 . . . 41 35 16 101 148 11 46 28 8 37 73 45 147 105 Melee 13 | . . 9 . . . . . . 3 1 . . . . . . . . . Projectile 868 | . 14 17 . . . 41 35 16 98 147 11 46 28 8 37 73 45 147 105 Critical Strikes 41 | . . . . . . 3 1 . 3 2 1 4 4 . . 4 2 11 6 Actively Blocked 2 | . . . . . . . . . . . . . . . . . . . 2 Part Disruptions 1 | . . . . . . . . . . . . . . . . . . 1 . Damage Taken 16198 | . 139 542 . . . 564 523 198 1699 1694 205 871 426 206 861 1378 899 3822 2171 Core 1632 | . 43 97 . . . 38 84 58 158 175 18 78 42 23 103 51 135 352 177 Absorbed by Shields . | . . . . . . . . . . . . . . . . . . . . Reduced by Siege Mode 81 | . . . . . . . . . . . . . . . . . . 10 71 Redirected to Shielding 288 | . . . . . . 100 . . . . . . . . . . . 119 69 Ignored by Resistances 2130 | . . . . . . . . . . . . 175 307 . . 150 96 747 655 Regen/Repaired (Parts) 609 | . . . . . 211 . . . 120 99 . . . . . 179 . . . Core Remaining (%) 78 | 100 . . . 44 . . . 67 77 79 . . . . 73 95 89 75 88 Volleys Fired 631 | 14 21 32 . . 4 42 30 19 75 85 12 31 17 29 45 46 20 50 59 Largest 4 | 2 2 2 . . 3 3 3 3 3 4 4 4 4 4 4 4 4 4 4 Hottest 205 | 70 100 70 . . 78 78 81 81 69 126 148 154 148 148 154 157 159 182 205 Shots Fired 1797 | 28 41 63 . . 12 101 90 56 193 245 34 93 58 76 125 139 57 165 221 Gun 1287 | 28 40 63 . . 12 101 90 56 184 150 20 49 24 58 64 86 38 90 134 Cannon 493 | . . . . . . . . . 7 92 12 40 34 18 61 51 18 73 87 Launcher 16 | . . . . . . . . . 2 3 2 4 . . . 2 1 2 . Special 1 | . 1 . . . . . . . . . . . . . . . . . . Kinetic 1741 | 14 20 58 . . 12 101 90 56 191 242 32 89 58 76 125 137 56 163 221 Thermal 40 | 14 21 5 . . . . . . . . . . . . . . . . . Explosive 16 | . . . . . . . . . 2 3 2 4 . . . 2 1 2 . Electromagnetic . | . . . . . . . . . . . . . . . . . . . . Robot Hit Streak 36 | 5 11 15 . . 16 12 20 20 11 15 9 25 13 14 11 13 6 15 36 Robot Miss Streak 6 | 3 2 4 . . 1 3 2 4 4 6 2 2 2 4 3 5 2 4 3 Penetration Max 1 | . . . . . . . . . . . . 1 . . . 1 1 1 1 Secondary Targets 14 | . 1 . . . . 1 2 3 1 2 1 . . . . . 1 . 2 Max Gunslinging Chain 1 | . 1 . . . . 1 1 1 1 1 1 . . . . . 1 . 1 Shots Hit Robots 1179 | 17 28 42 4 . 10 53 65 36 124 163 21 71 39 51 75 85 35 96 164 Core Hits 538 | 4 16 20 . . 5 21 30 16 62 73 15 43 15 27 28 35 18 47 63 Critical Kills 10 | . . . . . . . . . 1 . . . 1 1 . . 2 1 4 Critical Parts Destroyed 21 | . . 1 . . . 1 . . 1 . . . . . . 1 1 4 12 Critical Strikes 66 | . . 2 . . . 1 . . 2 7 1 7 2 2 . 5 5 8 24 Burn 1 | . . 1 . . . . . . . . . . . . . . . . . Destroy 32 | . . 1 . . . 1 . . 2 . . . 1 1 . 1 4 5 16 Blast 33 | . . . . . . . . . . 7 1 7 1 1 . 4 1 3 8 Melee Attacks 4 | . . . 4 . . . . . . . . . . . . . . . . Impact . | . . . . . . . . . . . . . . . . . . . . Slashing . | . . . . . . . . . . . . . . . . . . . . Piercing . | . . . . . . . . . . . . . . . . . . . . Sneak Attacks 4 | . . . 4 . . . . . . . . . . . . . . . . Combat Hostiles . | . . . . . . . . . . . . . . . . . . . . Follow-up Attacks . | . . . . . . . . . . . . . . . . . . . . Damage Inflicted 32270 | 182 274 361 . . 142 829 1092 668 2333 4483 987 2967 923 1323 2474 2842 1139 3979 5272 Guns 17306 | 182 274 361 . . 142 829 1092 615 2031 1783 297 912 433 986 1112 1499 435 1702 2621 Cannons 11306 | . . . . . . . . . . 2065 264 1023 490 329 1022 1239 520 1758 2596 Explosions 3110 | . . . . . . . . . 202 548 401 1029 . . 238 . 184 508 . Melee . | . . . . . . . . . . . . . . . . . . . . Ramming 548 | . . . . . . . . 53 100 87 25 3 . 8 102 104 . 11 55 Kinetic 28283 | 56 108 324 . . 142 829 1092 615 2031 3848 561 1935 923 1315 2134 2738 955 3460 5217 Thermal 329 | 126 166 37 . . . . . . . . . . . . . . . . . Explosive 2872 | . . . . . . . . . 202 548 401 1029 . . . . 184 508 . Electromagnetic 238 | . . . . . . . . . . . . . . . 238 . . . . Impact . | . . . . . . . . . . . . . . . . . . . . Slashing . | . . . . . . . . . . . . . . . . . . . . Piercing . | . . . . . . . . . . . . . . . . . . . . Highest Corruption 7 | . . . . . . 1 1 1 7 1 . . . . . 4 1 7 3 Average Corruption 2 | . . . . . . 1 1 1 3 1 . . . . . 2 1 4 2 Corruption Purged 7 | . . . . . . . . . . . . . . . . . . 7 . Corruption Blocked 15 | . . . . . . . . . . . . . . . 6 9 . . . Effects 67 | . . . . . . 6 2 6 37 1 . . . . . . . 10 5 Message Errors 9 | . . . . . . . 1 1 3 . . . . . . . . 3 1 Matter Fused 11 | . . . . . . . 1 . 8 . . . . . . . . 1 1 Heat Flow Errors 11 | . . . . . . 2 . . 7 . . . . . . . . 1 1 Energy Discharges 13 | . . . . . . 1 . 2 9 . . . . . . . . 1 . Parts Rejected 1 | . . . . . . . . . 1 . . . . . . . . . . Data Loss (minor) 9 | . . . . . . 1 . 2 1 . . . . . . . . 3 2 Data Loss (major) 4 | . . . . . . 1 . 1 1 1 . . . . . . . . . Misfires 2 | . . . . . . 1 . . 1 . . . . . . . . . . Alerts 3 | . . . . . . . . . 3 . . . . . . . . . . Weapon Failures 4 | . . . . . . . . . 3 . . . . . . . . 1 . Overload Shots . | . . . . . . . . . . . . . . . . . . . . Overflow Damage 618 | . . . . . . . . . 73 46 5 19 8 . 77 69 63 134 124 Projectiles 491 | . . . . . . . . . . 43 5 . 8 . 58 65 63 134 115 Explosions 114 | . . . . . . . . . 73 3 . 19 . . 19 . . . . Melee 13 | . . . . . . . . . . . . . . . . 4 . . 9 Knockbacks 62 | . . . . . . . . . 1 14 3 . . . 9 10 3 8 14 Impact 3 | . . . . . . . . . 1 . 1 . . . 1 . . . . Kinetic 52 | . . . . . . . . . . 13 2 . . . 6 8 2 8 13 Secondary 7 | . . . . . . . . . . 1 . . . . 2 2 1 . 1 Self-Inflicted Damage 588 | . . . . . . . . . 372 . . . . . 184 3 29 . . Shots 8 | . . . . . . . . . 4 . . . . . 2 1 1 . . Rammed 50 | . . . . . . . 1 5 6 13 3 2 . 1 11 6 . 1 1 Targets Rammed 56 | . . . . . . . 1 5 6 16 3 2 . 1 12 6 . 1 3 Kicked 2 | . . . . . . . . . . . . . . . . . . . 2 Crushed 4 | . . . . . . . . . . 3 . . . . 1 . . . . Highest Temperature 400 | 40 51 38 . . 32 130 110 27 267 400 104 127 141 105 100 192 163 286 299 Average Temperature 61 | 21 22 14 . . 15 27 31 9 50 108 38 43 77 52 45 70 74 85 68 Received Heat Transfer 2043 | . 60 108 . . . 225 225 54 207 417 54 138 . 27 54 186 90 18 180 Effects 1 | . . . . . . . . . . 1 . . . . . . . . . Shutdowns 1 | . . . . . . . . . . 1 . . . . . . . . . Siege Activations 5 | . . . . . . . . . . . . . . . . . . 1 4 Total Turns 104 | . . . . . . . . . . . . . . . . . . 26 78 Longest Duration 27 | . . . . . . . . . . . . . . . . . . 26 27 Martial Activations . | . . . . . . . . . . . . . . . . . . . . Shielding Activations . | . . . . . . . . . . . . . . . . . . . . Robots Disrupted . | . . . . . . . . . . . . . . . . . . . . Combat Hostiles . | . . . . . . . . . . . . . . . . . . . . Robots Corrupted 1 | . . . . . . . . . . . . . . . . . . . 1 Combat Hostiles . | . . . . . . . . . . . . . . . . . . . . Parts Fried 2 | . . . . . . . . . . . . . . . 1 . . . 1 Impact Corruptions 2 | . . . . . . . . . . . . . . . . 1 . . 1 Robots Melted . | . . . . . . . . . . . . . . . . . . . . Combat Hostiles . | . . . . . . . . . . . . . . . . . . . . Parts Melted 2 | 1 . . . . . . . . . . . . . . . . . 1 . Heat Transferred 1036 | 370 481 185 . . . . . . . . . . . . . . . . . Parts Sabotaged . | . . . . . . . . . . . . . . . . . . . . Parts Stolen . | . . . . . . . . . . . . . . . . . . . . Parts Stripped . | . . . . . . . . . . . . . . . . . . . . Power Chain Reactions . | . . . . . . . . . . . . . . . . . . . . Alert | -11 -10 -10 -10 -9 -8 -8 -8 -8 -7 -6 -5 -5 -5 -5 -5 -4 -3 -2 -1 ------- Run | Yrd Mat Min Exi Min Mat Gar Mat Sto Fac Fac Fac Ext Cet Arc Hub Fac Res Res Acc Maximum Alert Level 3 | . . . . . . 1 1 . 1 1 1 . . . 3 1 1 . 1 Low Security (%) 73 | 100 100 100 . 100 100 51 95 100 97 50 93 100 100 100 95 . 61 100 51 Level 1 26 | . . . . . . 48 4 . 2 49 6 . . . . 99 38 . 48 Level 2 . | . . . . . . . . . . . . . . . 2 . . . . Level 3 . | . . . . . . . . . . . . . . . 2 . . . . Level 4 . | . . . . . . . . . . . . . . . . . . . . Level 5 . | . . . . . . . . . . . . . . . . . . . . High Security . | . . . . . . . . . . . . . . . . . . . . Max Security . | . . . . . . . . . . . . . . . . . . . . Peak Influence 791 | 10 105 42 . . 35 235 213 186 224 376 221 170 120 70 791 383 267 130 269 Initial 383 | . . 9 . . . . 114 89 . 81 108 . 84 12 . 383 104 107 52 Average 114 | . 33 3 . . 4 153 108 75 90 162 83 65 74 33 49 266 180 78 151 Influence Increases 7826 | 15 225 50 . . 144 255 395 500 908 800 312 586 108 142 1125 512 331 690 728 Destroy 0b10 Robot/C 4080 | . 140 40 . . 80 220 240 260 440 480 180 380 80 80 180 280 180 320 500 Destroy 0b10 Robot/NC 230 | 15 5 . . . 10 . 5 15 30 50 . 5 . 20 15 10 . 25 25 Destroy Leader 916 | . 40 10 . . 32 . 80 72 144 154 30 42 . . 52 62 30 82 86 Allied During Kill 113 | . . . . . 11 . . 73 10 . . 19 . . . . . . . Trap Triggered on 0b10 90 | . . . . . . . 10 . 20 20 . . . . . . . 40 . Successful Hack 398 | . 10 . . . 10 . 25 18 68 48 58 . 12 . 54 18 16 37 24 Disable Machine 690 | . 15 . . . . . 15 . 90 15 15 15 . 30 435 30 30 . . Destroy Structure 934 | . . . . . 1 35 5 2 46 33 14 80 16 12 374 82 30 141 63 Partial Spotted 15 | . . . . . . . . . . . . . . . . . . . 15 Lose Combat Pursuer 360 | . 15 . . . . . 15 60 60 . 15 45 . . 15 30 45 45 15 Influence Decreases 7571 | 15 199 62 14 . 144 20 417 713 741 745 534 434 228 174 342 1096 339 792 562 Entered New Map 1180 | . . 17 14 . . . 121 124 . 86 114 . 68 20 . 400 95 84 37 Time Decay 5245 | 15 199 45 . . 119 . 286 459 471 479 410 354 160 150 322 626 214 504 432 Lost Part 591 | . . . . . . 20 10 30 70 20 . 20 . 4 20 70 30 204 93 Lost Ally 255 | . . . . . 25 . . 100 50 10 10 60 . . . . . . . Purge Threat 300 | . . . . . . . . . 150 150 . . . . . . . . . Squads Dispatched 74 | . 5 . . . 2 . 4 1 14 13 3 1 . . 5 7 1 12 6 Investigation 9 | . 2 . . . 1 . . . 1 4 . 1 . . . . . . . Extermination 29 | . . . . . . . . . 6 6 2 . . . 2 5 1 3 4 Reinforcement 24 | . 3 . . . . . 1 . 4 3 1 . . . 2 2 . 6 2 Assault 1 | . . . . . . . . . . . . . . . 1 . . . . Garrison 11 | . . . . . 1 . 3 1 3 . . . . . . . . 3 . Intercept . | . . . . . . . . . . . . . . . . . . . . Searches Triggered . | . . . . . . . . . . . . . . . . . . . . Construction Impeded 6 | . . . . . . . . . 1 1 1 . . . 2 . . 1 . Haulers Reinforced 3 | . . . . . . . . . 1 1 . . . . . . . . 1 Active Scanning Responses . | . . . . . . . . . . . . . . . . . . . . Cargo Convoy Interrupts . | . . . . . . . . . . . . . . . . . . . . Stealth | -11 -10 -10 -10 -9 -8 -8 -8 -8 -7 -6 -5 -5 -5 -5 -5 -4 -3 -2 -1 --------- Run | Yrd Mat Min Exi Min Mat Gar Mat Sto Fac Fac Fac Ext Cet Arc Hub Fac Res Res Acc Distress Signals 21 | . 1 . . . . . 5 1 2 3 . 2 . 1 . 3 . 2 1 Communications Jammed 83 | . . . . . . . . . . . . . . . . 17 14 5 47 Distress Signals 75 | . . . . . . . . . . . . . . . . 17 14 4 40 Times Spotted 354 | . 13 7 . . 11 16 23 14 38 45 10 22 5 22 18 34 18 23 35 Peak Tracking Total 9 | . 6 2 . . 4 4 9 4 5 4 4 5 5 1 3 6 5 6 5 Tactical Retreats 21 | . 1 . . . . . 1 3 3 . 1 2 . . 1 2 3 3 1 Traps | -11 -10 -10 -10 -9 -8 -8 -8 -8 -7 -6 -5 -5 -5 -5 -5 -4 -3 -2 -1 ------- Run | Yrd Mat Min Exi Min Mat Gar Mat Sto Fac Fac Fac Ext Cet Arc Hub Fac Res Res Acc Traps Triggered 9 | . 2 . . . . . . . 4 1 . . . . 1 1 . . . Indirectly 1 | . . . . . . . . . . . . . . . 1 . . . . Trap Hack Attempts . | . . . . . . . . . . . . . . . . . . . . Triggered . | . . . . . . . . . . . . . . . . . . . . Disarmed . | . . . . . . . . . . . . . . . . . . . . Reprogrammed 4 | . . . . . . . . . . . . . . . . . . 4 . Reused 9 | . . . . . . . 1 . 2 2 . . . . . . . 4 . Traps Extracted . | . . . . . . . . . . . . . . . . . . . . Installed 5 | . . . . . . . 1 . 2 2 . . . . . . . . . Triggered 9 | . . . . . . . 1 . 2 2 . . . . . . . 4 . Most Traps Carried 5 | . . 5 5 5 5 5 5 4 4 2 . . . . . . . . . Machines | -11 -10 -10 -10 -9 -8 -8 -8 -8 -7 -6 -5 -5 -5 -5 -5 -4 -3 -2 -1 ---------- Run | Yrd Mat Min Exi Min Mat Gar Mat Sto Fac Fac Fac Ext Cet Arc Hub Fac Res Res Acc Machines Disabled 46 | . 1 . . . . . 1 . 6 1 1 1 . 2 29 2 2 . . Max in Single Turn 15 | . 1 . . . . . 1 . 4 1 1 1 . 1 15 1 1 . . Garrison Access 4 | . . . . . . . . 1 . 1 . . . . 1 1 . . . Network Hub 2 | . . . . . . . . . . . . . . . 2 . . . . Machines Repaired . | . . . . . . . . . . . . . . . . . . . . Machines Dismantled . | . . . . . . . . . . . . . . . . . . . . Machines Sabotaged . | . . . . . . . . . . . . . . . . . . . . Overloaded Fab Kills . | . . . . . . . . . . . . . . . . . . . . Hacking | -11 -10 -10 -10 -9 -8 -8 -8 -8 -7 -6 -5 -5 -5 -5 -5 -4 -3 -2 -1 --------- Run | Yrd Mat Min Exi Min Mat Gar Mat Sto Fac Fac Fac Ext Cet Arc Hub Fac Res Res Acc Machines Accessed 90 | . 7 . 1 . 8 1 5 8 12 19 6 3 2 . 7 6 1 2 2 Terminals 64 | . 5 . . . 6 1 5 6 8 10 6 3 2 . 6 1 1 2 2 Fabricators 5 | . . . . . . . . . 2 3 . . . . . . . . . Repair Stations 4 | . . . . . 1 . . . 1 1 . . . . . 1 . . . Recycling Units 10 | . 2 . . . . . . 1 . 4 . . . . . 3 . . . Scanalyzers . | . . . . . . . . . . . . . . . . . . . . Garrison Access 6 | . . . . . 1 . . 1 1 1 . . . . 1 1 . . . Total Hacks 286 | . 20 . 1 . 31 1 18 19 38 43 18 7 2 . 19 27 12 28 2 Successful 169 | . 11 . 1 . 21 1 9 15 23 25 10 4 2 . 11 18 7 10 1 Failed 117 | . 9 . . . 10 . 9 4 15 18 8 3 . . 8 9 5 18 1 Catastrophic 18 | . . . . . 2 . . . 2 . 3 2 . . 1 1 1 5 1 Database Lockouts . | . . . . . . . . . . . . . . . . . . . . Manual 185 | . 11 . 1 . 21 . 12 12 31 25 10 4 1 . 14 11 9 23 . Terminals 224 | . 16 . . . 24 1 18 15 28 23 18 7 2 . 18 12 12 28 2 Fabricators 11 | . . . . . . . . . 5 6 . . . . . . . . . Repair Stations 14 | . . . . . 6 . . . 2 3 . . . . . 3 . . . Recycling Units 27 | . 4 . . . . . . 2 . 10 . . . . . 11 . . . Scanalyzers . | . . . . . . . . . . . . . . . . . . . . Garrison Access 9 | . . . . . 1 . . 2 3 1 . . . . 1 1 . . . Terminal Hacks 56 | . 6 . 1 . 6 1 3 3 6 4 4 2 2 . 4 4 5 4 1 Record 5 | . 1 . . . . . . . . 1 . . 1 . . 1 . 1 . Part Schematic 1 | . . . . . . . . . 1 . . . . . . . . . . Robot Analysis 7 | . 2 . . . 1 . . . 1 . . . . . . 2 . 1 . Prototype ID Bank 2 | . 1 . . . 1 . . . . . . . . . . . . . . Open Door 5 | . . . . . . . . 1 . . . 2 1 . . . . . 1 Level Access Points 2 | . . . . . . . . . . . . . . . 1 . 1 . . Branch Access Points 2 | . . . . . . . 1 . . . . . . . . . 1 . . Emergency Access Points 2 | . . . . . . 1 . . . . . . . . . . 1 . . Terminal Index 6 | . . . . . 1 . 1 1 1 . . . . . . . 1 1 . Garrison Index 2 | . . . . . 1 . . . . . 1 . . . . . . . . Unreport Threat 2 | . . . . . . . . . 1 1 . . . . . . . . . Locate Traps 7 | . 1 . . . 1 . . 1 1 . 1 . . . 1 . 1 . . Reprogram Traps 1 | . . . . . . . . . . . . . . . . . . 1 . Patrol Status 1 | . . . . . . . . . . . 1 . . . . . . . . Recall Investigation 2 | . 1 . . . . . . . . 1 . . . . . . . . . Registered Components 3 | . . . . . 1 . . . . 1 1 . . . . . . . . Zone Layout 5 | . . . . . . . 1 . 1 . . . . . 2 1 . . . Proto ID Catalog 1 | . . . 1 . . . . . . . . . . . . . . . . Fabricator Hacks 5 | . . . . . . . . . 1 4 . . . . . . . . . Network Status 3 | . . . . . . . . . 1 2 . . . . . . . . . Load Schematic 1 | . . . . . . . . . . 1 . . . . . . . . . Build 1 | . . . . . . . . . . 1 . . . . . . . . . Repair Station Hacks 10 | . . . . . 6 . . . 2 . . . . . . 2 . . . Scan Component 5 | . . . . . 3 . . . 1 . . . . . . 1 . . . Repair 5 | . . . . . 3 . . . 1 . . . . . . 1 . . . Recycling Unit Hacks 14 | . 2 . . . . . . 2 . 4 . . . . . 6 . . . Process 1 | . . . . . . . . . . . . . . . . 1 . . . Report Inventory 10 | . 2 . . . . . . 1 . 4 . . . . . 3 . . . Retrieve Matter 1 | . . . . . . . . . . . . . . . . 1 . . . Retrieve Components 2 | . . . . . . . . 1 . . . . . . . 1 . . . Scanalyzer . | . . . . . . . . . . . . . . . . . . . . Garrison Access Hacks 5 | . . . . . 1 . . 1 . 1 . . . . 1 1 . . . Unlock Access 1 | . . . . . 1 . . . . . . . . . . . . . . Seal Access 4 | . . . . . . . . 1 . 1 . . . . 1 1 . . . Unauthorized Hacks 79 | . 3 . . . 8 . 6 9 14 12 6 2 . . 6 5 2 6 . Terminals 65 | . 2 . . . 8 . 6 8 10 7 6 2 . . 6 2 2 6 . Track 3 | . 1 . . . 1 . 1 . . . . . . . . . . . . Assimilate 6 | . . . . . . . 1 . 3 1 . . . . . . . 1 . Botnet 14 | . 1 . . . 2 . 1 2 1 . 1 1 . . 1 1 1 2 . Disrupt 3 | . . . . . . . 1 1 1 . . . . . . . . . . Operators 1 | . . . . . . . . . . . . . . . . . . 1 . Skim 37 | . . . . . 5 . 2 5 5 5 5 1 . . 5 1 1 2 . Search 1 | . . . . . . . . . . 1 . . . . . . . . . Fabricators 2 | . . . . . . . . . 2 . . . . . . . . . . Fabnet 2 | . . . . . . . . . 2 . . . . . . . . . . Repair Stations 1 | . . . . . . . . . . 1 . . . . . . . . . Patch 1 | . . . . . . . . . . 1 . . . . . . . . . Recycling Units 8 | . 1 . . . . . . . . 4 . . . . . 3 . . . Reject 7 | . 1 . . . . . . . . 3 . . . . . 3 . . . Recyclers 1 | . . . . . . . . . . 1 . . . . . . . . . Scanalyzers . | . . . . . . . . . . . . . . . . . . . . Garrison Access 3 | . . . . . . . . 1 2 . . . . . . . . . . Reprogram 1 | . . . . . . . . . 1 . . . . . . . . . . Intercept 1 | . . . . . . . . . 1 . . . . . . . . . . Watchers 1 | . . . . . . . . 1 . . . . . . . . . . . Data Cores Recovered 2 | . . . . . . . 1 . . . . . . . . . . 1 . Used 2 | . . . . . . . 1 . . . . . . . . . . 1 . Hacking Detections 74 | . 6 . . . 7 1 5 6 11 18 6 3 . . 5 2 1 2 1 Full Trace Events 3 | . . . . . 1 . . . . 1 . 1 . . . . . . . Feedback Events . | . . . . . . . . . . . . . . . . . . . . Feedback Blocked . | . . . . . . . . . . . . . . . . . . . . Robot Schematics Acquired . | . . . . . . . . . . . . . . . . . . . . Robots Built . | . . . . . . . . . . . . . . . . . . . . Authchips . | . . . . . . . . . . . . . . . . . . . . Time . | . . . . . . . . . . . . . . . . . . . . Total Robot Build Rating . | . . . . . . . . . . . . . . . . . . . . Part Schematics Acquired 1 | . . . . . . . . . 1 . . . . . . . . . . Parts Built 2 | . . . . . . . . . . 2 . . . . . . . . . Authchips . | . . . . . . . . . . . . . . . . . . . . Time 42 | . . . . . . . . . . 42 . . . . . . . . . Total Part Build Rating 8 | . . . . . . . . . . 8 . . . . . . . . . Parts Repaired 5 | . . . . . 3 . . . 1 . . . . . . 1 . . . Time 160 | . . . . . 78 . . . 26 . . . . . . 56 . . . Parts Recycled . | . . . . . . . . . . . . . . . . . . . . Recycled Matter 140 | . . . . . . . . . . . . . . . . 140 . . . Retrieved Matter 140 | . . . . . . . . . . . . . . . . 140 . . . Retrieved Components 12 | . . . . . . . . 9 . . . . . . . 3 . . . Parts Scanalyzed . | . . . . . . . . . . . . . . . . . . . . Part Schematics Acquired . | . . . . . . . . . . . . . . . . . . . . Parts Damaged . | . . . . . . . . . . . . . . . . . . . . Bothacking | -11 -10 -10 -10 -9 -8 -8 -8 -8 -7 -6 -5 -5 -5 -5 -5 -4 -3 -2 -1 ------------ Run | Yrd Mat Min Exi Min Mat Gar Mat Sto Fac Fac Fac Ext Cet Arc Hub Fac Res Res Acc Used RIF Installer 2 | . . . . . . 2 . . . . . . . . . . . . . Command Fork 1 | . . . . . . 1 . . . . . . . . . . . . . Robots Hacked 6 | . . . 4 . . . . . . 1 . 1 . . . . . . . Non-combat 3 | . . . 3 . . . . . . . . . . . . . . . . Combat 3 | . . . 1 . . . . . . 1 . 1 . . . . . . . Robot Hacks Applied 4 | . . . 4 . . . . . . . . . . . . . . . . parse_system 4 | . . . 4 . . . . . . . . . . . . . . . . Relay Couplers Released . | . . . . . . . . . . . . . . . . . . . . Fabnet Peak Effective % 6 | . . . . . . . . . . 6 2 2 2 2 2 . . . . Autooverrided 2 | . . . . . . . . . . 1 . 1 . . . . . . . Robots Rewired . | . . . . . . . . . . . . . . . . . . . . Allies Hacked 1 | . . . . . . . . . 1 . . . . . . . . . . Hacks Repelled . | . . . . . . . . . . . . . . . . . . . . Allies | -11 -10 -10 -10 -9 -8 -8 -8 -8 -7 -6 -5 -5 -5 -5 -5 -4 -3 -2 -1 -------- Run | Yrd Mat Min Exi Min Mat Gar Mat Sto Fac Fac Fac Ext Cet Arc Hub Fac Res Res Acc Total Allies 23 | . . . . 3 . . 1 10 3 2 . 4 . . . . . . . Largest Group 10 | . . . . 3 3 1 1 10 4 2 1 3 . . . . . . . Highest-Rated Group 173 | . . . . 40 40 16 10 173 64 63 10 90 . . . . . . . Highest-Rated Ally 39 | . . . . 16 16 16 10 29 32 37 10 39 . . . . . . . Total Orders 52 | . . . . . 2 . 7 8 11 23 1 . . . . . . . . STAY 30 | . . . . . 1 . 5 4 6 13 1 . . . . . . . . FOLLOW 22 | . . . . . 1 . 2 4 5 10 . . . . . . . . . Ally Attacks 149 | . . . . . 46 3 . 48 32 . . 20 . . . . . . . Total Damage 1883 | . . . . . 425 49 . 587 386 . . 436 . . . . . . . Kills 11 | . . . . . 3 . . 5 1 . . 2 . . . . . . . Allies Corrupted . | . . . . . . . . . . . . . . . . . . . . Allies Melted . | . . . . . . . . . . . . . . . . . . . . Intel | -11 -10 -10 -10 -9 -8 -8 -8 -8 -7 -6 -5 -5 -5 -5 -5 -4 -3 -2 -1 ------- Run | Yrd Mat Min Exi Min Mat Gar Mat Sto Fac Fac Fac Ext Cet Arc Hub Fac Res Res Acc Active Infowar (turns) 20147 | 6 541 93 172 175 837 913 636 1249 2452 3870 1117 884 331 350 1223 2156 454 1399 1289 Optics 6139 | . . . . . . . . . . 3868 1117 569 . . . . . . 585 Sensors 1 | . . . . . . . . . . . 1 . . . . . . . . Traps 5350 | . . . . . . . . . . . . 231 53 168 1223 2156 454 1065 . Seismic 640 | 6 541 93 . . . . . . . . . . . . . . . . . T.N.C. 19077 | . . . 172 175 837 913 636 1249 2452 3870 1117 884 331 350 1223 2155 454 1399 860 Jamming 4019 | . . . . . . . . . . . . . . . . 1548 446 918 1107 Robot Analysis Total 7 | . 2 . . . 1 . . . 1 . . . . . . 2 . 1 . Derelict Logs Recovered 2 | . . 2 . . . . . . . . . . . . . . . . . Drone Launches . | . . . . . . . . . . . . . . . . . . . . Drone Recoveries . | . . . . . . . . . . . . . . . . . . . . Exploration | -11 -10 -10 -10 -9 -8 -8 -8 -8 -7 -6 -5 -5 -5 -5 -5 -4 -3 -2 -1 ------------- Run | Yrd Mat Min Exi Min Mat Gar Mat Sto Fac Fac Fac Ext Cet Arc Hub Fac Res Res Acc Turns Passed 21231 | 93 543 826 434 175 837 913 636 1249 2452 3870 1117 884 331 350 1223 2156 454 1399 1289 Spaces Moved 9651 | 38 415 468 263 107 288 446 275 341 1183 1701 411 416 145 132 505 1052 207 585 673 Core 7 | 7 . . . . . . . . . . . . . . . . . . . Treads 8709 | 1 . 394 263 107 288 446 275 341 1183 1701 411 416 145 132 505 1052 207 585 257 Legs 416 | . . . . . . . . . . . . . . . . . . . 416 Wheels 519 | 30 415 74 . . . . . . . . . . . . . . . . . Hover . | . . . . . . . . . . . . . . . . . . . . Flight . | . . . . . . . . . . . . . . . . . . . . Fastest Speed 50 | 50 95 110 160 160 160 160 160 160 160 160 167 167 167 167 162 162 162 160 120 Average Speed 158 | 92 106 152 160 160 160 160 160 160 160 165 167 169 174 167 165 163 165 164 140 Slowest Speed 250 | 160 110 160 160 160 160 240 160 160 240 250 167 250 247 167 167 165 245 243 240 Overloaded Moves . | . . . . . . . . . . . . . . . . . . . . Propulsion Burnouts . | . . . . . . . . . . . . . . . . . . . . Robots Hopped . | . . . . . . . . . . . . . . . . . . . . Potential Cave-ins . | . . . . . . . . . . . . . . . . . . . . Cave-ins Triggered . | . . . . . . . . . . . . . . . . . . . . Exploration Rate (%) 40 | 3 84 84 55 28 20 52 28 47 30 47 10 57 69 78 49 35 8 10 17 Regions Visited 19 Branch Regions 8 Pre-discovered Areas 9 | . . 1 . . 3 . . 1 1 3 . . . . . . . . . Known Exits Taken 10 | . 1 . 1 . 1 . 1 1 1 . 1 . . . 1 1 1 . . Unknown Exits Taken 8 | 1 . 1 . 1 . . . . . 1 . 1 1 1 . . . 1 . Scrap Searched 1 | . . 1 . . . . . . . . . . . . . . . . . Spaces Dug 48 | . . . . . . . . . 6 11 . . . . 9 9 12 1 . Terrain Destroyed 665 | . . . . . . . 3 . 49 32 8 69 9 6 357 34 15 64 19 Melee . | . . . . . . . . . . . . . . . . . . . . Projectile 142 | . . . . . . . 3 . 3 18 3 3 9 6 23 20 3 32 19 AOE 523 | . . . . . . . . . 46 14 5 66 . . 334 14 12 32 . Terrain Rammed . | . . . . . . . . . . . . . . . . . . . . Walls Destroyed . | . . . . . . . . . . . . . . . . . . . . Machines Disabled . | . . . . . . . . . . . . . . . . . . . . Actions | -11 -10 -10 -10 -9 -8 -8 -8 -8 -7 -6 -5 -5 -5 -5 -5 -4 -3 -2 -1 --------- Run | Yrd Mat Min Exi Min Mat Gar Mat Sto Fac Fac Fac Ext Cet Arc Hub Fac Res Res Acc Total 14502 | 67 475 534 274 111 660 585 424 1012 1608 2633 821 538 191 215 824 1414 286 927 903 Wait 3577 | . 20 17 . 5 342 81 107 630 278 726 376 66 5 36 242 257 46 236 107 Move 9631 | 37 414 467 262 106 287 445 274 340 1182 1700 410 415 144 131 504 1051 206 584 672 Hop . | . . . . . . . . . . . . . . . . . . . . Pick Up 164 | 7 10 7 3 . 8 7 7 7 19 29 2 5 5 6 4 9 4 9 16 Fast Attach 97 | 7 . . 1 . 5 . 1 . 7 13 5 2 4 2 3 12 1 17 17 Attach 96 | 1 1 4 1 . 5 3 1 3 11 7 2 6 3 3 1 11 4 17 12 Detach 22 | 1 . . . . 1 1 . . 2 . 1 1 2 2 1 4 . 3 3 Swap 64 | . 5 1 1 . 1 1 . 2 13 12 4 8 . 1 5 4 3 1 2 Drop 155 | . 4 6 2 . 7 5 2 6 13 43 6 2 11 4 7 14 2 9 12 Fire 631 | 14 21 32 . . 4 42 30 19 75 85 12 31 17 29 45 46 20 50 59 Melee 4 | . . . 4 . . . . . . . . . . . . . . . . Ram . | . . . . . . . . . . . . . . . . . . . . Kick 2 | . . . . . . . . . . . . . . . . . . . 2 Crush 54 | . . . . . . . 1 5 6 16 3 2 . 1 12 6 . 1 1 Escape Stasis . | . . . . . . . . . . . . . . . . . . . . Rewire . | . . . . . . . . . . . . . . . . . . . . Trap 5 | . . . . . . . 1 . 2 2 . . . . . . . . . Miscellaneous . | . . . . . . . . . . . . . . . . . . . . Route ------- -11/Scrapyard -10/Materials (discovered 3 exits: [*Mat] / *Min x2) -10/Mines (discovered 2 exits: [*Mat] / *Exi) -10/Exiles (discovered 2 exits: *Min x2) -9/Mines -8/Materials (discovered 6 exits: Fac x3 / Sto x2 / Gar) -8/Garrison (discovered 2 exits: *Mat x2) -8/Materials (discovered 3 exits: Fac x2 / *Sto) -8/Storage (discovered 2 exits: *Fac / Rec) -7/Factory (discovered 4 exits: *Fac x2 / Low x2) -6/Factory (discovered 5 exits: *Fac x3 / *Low x2) -5/Factory (discovered 3 exits: Fac / Upp / *Ext) -5/Extension (discovered 3 exits: *Fac x2 / *Cet) -5/Cetus -5/Archives (discovered 2 exits: *Fac / *Hub) -5/Hub_04(d) (discovered 4 exits: *Fac x4) -4/Factory (discovered 4 exits: *Res x3 / [*Upp]) -3/Research (discovered 6 exits: *Res x3 / Arm / Tes x2) -2/Research (discovered 2 exits: *Acc / Qua) -1/Access To Epsilon Eridani History --------- Turn | Location | Event 24 | -11/Scrapyard | Discovered new exit (range 16) 94 | -11/Scrapyard | Entered Materials 95 | -10/Materials | Met a group of wandering Federalists 178 | -10/Materials | Discovered new exit (range 14) 303 | -10/Materials | Build established: Mutant 319 | -10/Materials | Discovered new exit (range 3) 360 | -10/Materials | Discovered new exit (range 16) 500 | -10/Materials | Identified exit to Mines 637 | -10/Materials | Entered Mines 654 | -10/Mines | Discovered new exit (range 6) 705 | -10/Mines | A weapon hastily lodged in a ceiling crevice suddenly fell to the ground 727 | -10/Mines | Found a hidden stash of uninstalled traps 828 | -10/Mines | Assembled infested the area 900 | -10/Mines | Learned location of Storage (-8) 1380 | -10/Mines | Core integrity fell below 50% 1455 | -10/Mines | Deemed a non-threat by the Exiles lab entrance 1457 | -10/Mines | Discovered new exit (range 5) 1463 | -10/Mines | Entered Exiles 1464 | -10/Exiles | Identified exit to Mines 1505 | -10/Exiles | Met 8R-AWN 1532 | -10/Exiles | Met EX-HEX 1594 | -10/Exiles | Met EX-DEC 1650 | -10/Exiles | Met EX-BIN 1674 | -10/Exiles | Aligned with FarCom system 1676 | -10/Exiles | Given EX-Vault access code 1714 | -10/Exiles | Opened EX-Vault 1725 | -10/Exiles | Found Modified TNC 1762 | -10/Exiles | Warned to stay clear of 0b10 Research branches 1897 | -10/Exiles | Left Exiles lab with Modified TNC 1897 | -10/Exiles | Entered Mines 1942 | -9/Mines | Discovered new exit (range 16) 2018 | -9/Mines | Assisted by bots powering up and referring to "LRC-V3" 2072 | -9/Mines | Entered Materials 2072 | -8/Materials | Accompanied by 3 allies 2072 | -8/Materials | Evolved 4 slots: Propulsion x1, Utility x2, Weapon x1 2073 | -8/Materials | Identified exit to Storage 2359 | -8/Materials | Build established: Skirmisher 2395 | -8/Materials | Learned location of 1 exit from Lower Caves 2458 | -8/Materials | Identified exit to Garrison 2535 | -8/Materials | Learned 2 Lower Caves zone layouts 2592 | -8/Materials | Learned Storage security intel 2605 | -8/Materials | Repaired Lgt. Treads 2633 | -8/Materials | Repaired Lgt. Treads 2640 | -8/Materials | Identified exit to Factory 2658 | -8/Materials | Garrison activated, responded to threat 2660 | -8/Materials | Repaired Lgt. Assault Rifle 2676 | -8/Materials | Learned location of Zion (-7) 2701 | -8/Materials | Learned location of Lower Caves (-6) 2736 | -8/Materials | Learned Storage emergency access door positions 2842 | -8/Materials | Learned 4 Lower Caves zone layouts 2909 | -8/Materials | Entered Garrison 2909 | -8/Garrison | Accompanied by 1 ally 3046 | -8/Garrison | Found Powered Armor 3049 | -8/Garrison | Found Powered Armor 3052 | -8/Garrison | Found Powered Armor 3117 | -8/Garrison | Triggered checkpoint 3375 | -8/Garrison | Triggered checkpoint 3503 | -8/Garrison | Discovered new exit (range 10) 3691 | -8/Garrison | Installed Relay Interface Framework 3763 | -8/Garrison | Expanded RIF knowledge: Command Fork 3808 | -8/Garrison | Discovered new exit (range 10) 3822 | -8/Garrison | Entered Materials 4202 | -8/Materials | Garrison activated, responded to threat 4267 | -8/Materials | Destroyed 7 combat bots 4458 | -8/Materials | Entered Storage 4497 | -8/Storage | Garrison activated, responded to threat 4578 | -8/Storage | Build established: Scavenger-Skirmisher 4776 | -8/Storage | Assisted by bots powering up and referring to "LRC-V3" 4969 | -8/Storage | Lost 6 allies 5175 | -8/Storage | Discovered exit to Factory (range 6) 5216 | -8/Storage | Identified exit to Recycling 5353 | -8/Storage | Learned 4 Lower Caves zone layouts 5405 | -8/Storage | Learned location of 1 exit from Recycling 5502 | -8/Storage | Learned 4 Factory zone layouts 5536 | -8/Storage | Learned location of 2 exits from Factory 5704 | -8/Storage | Learned location of Recycling (-8) 5707 | -8/Storage | Entered Factory 5707 | -7/Factory | Accompanied by 4 allies 5707 | -7/Factory | Evolved 2 slots: Propulsion x1, Utility x1 5708 | -7/Factory | Identified exit to Lower Caves 5709 | -7/Factory | Identified exit to Factory 6129 | -7/Factory | Lost 4 allies 6184 | -7/Factory | Garrison activated, responded to threat 6651 | -7/Factory | Lost 3 parts (1n2u) 6928 | -7/Factory | Build established: Scavenger-Tank 6955 | -7/Factory | Repaired Lgt. Treads 7935 | -7/Factory | Learned Hub_04(d) security intel 7966 | -7/Factory | Learned 4 Factory zone layouts 7987 | -7/Factory | Learned location of Warlord (-4) 7998 | -7/Factory | Learned location of 1 exit from Proximity Caves 8159 | -7/Factory | Entered another Factory area 8159 | -6/Factory | Accompanied by 1 ally 8159 | -6/Factory | Evolved 2 slots: Utility x1, Weapon x1 8160 | -6/Factory | Identified exit to Lower Caves 8452 | -6/Factory | Build established: Scavenger-Skirmisher 8664 | -6/Factory | Discovered new exit (range 6) 9355 | -6/Factory | Discovered new exit (range 8) 9563 | -6/Factory | Spotted B-75 Beast 9746 | -6/Factory | Destroyed B-75 Beast 9768 | -6/Factory | Build established: Skirmisher 10668 | -6/Factory | Found Hvy. Reactive Plating 10762 | -6/Factory | Learned 2 Upper Caves zone layouts 10794 | -6/Factory | Learned location of Proximity Caves (-5) 10818 | -6/Factory | Learned location of 1 exit from Proximity Caves 10834 | -6/Factory | Learned location of 1 exit from Extension 10839 | -6/Factory | Learned 2 Upper Caves zone layouts 10840 | -6/Factory | Loaded intel: 6 repair station locations 10891 | -6/Factory | Learned Extension trap positions 11067 | -6/Factory | Fabricated Corruption Screen? 11960 | -6/Factory | Discovered new exit (range 19) 12029 | -6/Factory | Entered another Factory area 12029 | -5/Factory | Accompanied by 1 ally 12029 | -5/Factory | Evolved 2 slots: Utility x2 12030 | -5/Factory | Identified exit to Upper Caves 12030 | -5/Factory | Identified exit to Extension 12854 | -5/Factory | Learned location of 1 exit from Quarantine 13024 | -5/Factory | Identified exit to Factory 13080 | -5/Factory | Learned Extension stockpile data 13145 | -5/Factory | Loaded intel: 56 interactive machine locations 13146 | -5/Factory | Entered Extension 13148 | -5/Extension | Disrupted transfer network 13148 | -5/Extension | Loaded intel: 35 trap records 13353 | -5/Extension | Rescued a captive Derelict 13355 | -5/Extension | Rescued a captive Derelict 13462 | -5/Extension | Rescued a captive Derelict 13667 | -5/Extension | Spotted B-75 Beast 13669 | -5/Extension | Lost 3 allies 13757 | -5/Extension | Destroyed B-75 Beast 13777 | -5/Extension | Spotted B-75 Beast 13795 | -5/Extension | Destroyed B-75 Beast 13998 | -5/Extension | Discovered new exit (range 15) 14000 | -5/Extension | Discovered exit to Factory (range 15) 14030 | -5/Extension | Entered Cetus 14115 | -5/Cetus | Spotted Cetus Guard 14122 | -5/Cetus | Destroyed Cetus Guard 14125 | -5/Cetus | Spotted Cetus Guard 14128 | -5/Cetus | Spotted Cetus Guard 14129 | -5/Cetus | Spotted Cetus Guard 14132 | -5/Cetus | Destroyed Cetus Guard 14145 | -5/Cetus | Destroyed Cetus Guard 14150 | -5/Cetus | Destroyed Cetus Guard 14336 | -5/Cetus | Discovered new exit (range 15) 14361 | -5/Cetus | Entered Archives 14485 | -5/Archives | Discovered exit to Factory (range 14) 14510 | -5/Archives | Discovered new exit (range 14) 14668 | -5/Archives | Unable to access archive contents 14685 | -5/Archives | Unable to access archive contents 14711 | -5/Archives | Entered Hub_04(d) 14896 | -5/Hub_04(d) | Build established: Hacker-Skirmisher 15160 | -5/Hub_04(d) | Spotted B-75 Beast 15180 | -5/Hub_04(d) | Destroyed B-75 Beast 15480 | -5/Hub_04(d) | Learned Extension emergency access door positions 15551 | -5/Hub_04(d) | Learned 2 Extension zone layouts 15667 | -5/Hub_04(d) | Learned 2 Extension zone layouts 15781 | -5/Hub_04(d) | Learned Extension garrison access intel 15822 | -5/Hub_04(d) | Learned Research fabricator intel 15871 | -5/Hub_04(d) | Learned 4 Extension zone layouts 15878 | -5/Hub_04(d) | Network Hub disabled 15909 | -5/Hub_04(d) | Network Hub disabled 15911 | -5/Hub_04(d) | First assault squad dispatched 15931 | -5/Hub_04(d) | Spotted Lightning 15934 | -5/Hub_04(d) | Entered Factory 15934 | -4/Factory | Evolved 2 slots: Utility x2 15935 | -4/Factory | Identified exit to Research 16173 | -4/Factory | Lost 3 parts (1n2w) 16356 | -4/Factory | Discovered new exit (range 14) 16483 | -4/Factory | Allied Derelicts emerged from ambush trap array 16575 | -4/Factory | P-70 Sage assimilated allied C4-55J(g) 17029 | -4/Factory | Build established: Scavenger-Skirmisher 17257 | -4/Factory | Repaired Mass Driver 17885 | -4/Factory | Discovered exit to Research (range 9) 18090 | -4/Factory | Entered Research 18090 | -3/Research | Evolved 2 slots: Utility x2 18091 | -3/Research | Loaded intel: 4 fabricator locations 18477 | -3/Research | Identified exit to Armory 18477 | -3/Research | Identified exit to Testing 18477 | -3/Research | Identified exit to Research 18544 | -3/Research | Entered another Research area 18544 | -2/Research | Evolved 2 slots: Utility x2 18545 | -2/Research | Identified exit to Quarantine 18977 | -2/Research | Found Prototype Device 18977 | -2/Research | Identified Exp. Thermal Shield 18981 | -2/Research | Found Exp. Thermal Shield 19254 | -2/Research | Build established: Scavenger-Tank 19638 | -2/Research | Garrison activated, responded to threat 19690 | -2/Research | Lost 15 parts (5n5u5w) 19936 | -2/Research | Discovered new exit (range 6) 19943 | -2/Research | Entered Access 19943 | -1/Access | Evolved 2 slots: Utility x2 20124 | -1/Access | Found Prototype Device 20124 | -1/Access | Identified Exp. Transmission Jammer 20128 | -1/Access | Found Exp. Transmission Jammer 20130 | -1/Access | Found Exp. Transmission Jammer 20281 | -1/Access | Lost 4 parts (1p2u1w) 20536 | -1/Access | Build established: Scavenger-Gunner 20602 | -1/Access | Found Prototype Device 20602 | -1/Access | Identified Thermal Barrier 20627 | -1/Access | Found Thermal Barrier 20647 | -1/Access | Found Prototype Processor 20647 | -1/Access | Identified Spectral Analyzer 20651 | -1/Access | Found Spectral Analyzer 20673 | -1/Access | Found Hvy. Reactive Plating 21225 | -1/Access | Discovered new exit (range 5) 21232 | *** | Escaped! Last Messages --------------- 21126_ K-01 Serf cleans the Spectral Interrupter. 21127_ U-05 Engineer builds a Wall. 21133_ U-05 Engineer builds a Door. 21139_ R-10 Processor collects Phase Gun. 21142_ R-10 Processor collects Adv. Heat Sink. 21151_ K-01 Serf cleans the Terminal. 21154_ System corrupted: Component data lost. 21155_ K-01 Serf cleans the Terminal. 21156_ Connecting with Terminal... 21156_ Current location identified: Access 21192_ ALERT: Potential suspicious activity detected, Programmers report to Access Zone 2V. 21204_ M:DXPHZ#0| FXETZZBR:ZWTFLWQPJ Z8S%P6/F7N 21222_ Connecting with Terminal... >>Open(Door) Sealed Barrier opened. 21223_ System corrupted: Matter fused (-7). 21225_ The Access Shell folds into the floor. 21225_ EXIT=FOUND [Achievement: Epsilon Run] Map ----- +----------------------------------------------------+ | ?????????????????????????????????????????????????? | | ?????????????????????????????????????????????????? | | ?????????????????????????????????????????????????? | | ?????????????????????????????????????????????????? | | ?????????????????????????????????????????????????? | | ?????????????????????????????????????????????????? | | ?????????????????????????????????????????????????? | | ?????????????????????????????????????????????????? | | ?????????????????????????????????????????????????? | | ?????????????????????????????????????????????????? | | ?????????????????????????????????????????????????? | | ?????????????????????????????????????????????????? | | ?????????????????????????????????????????????????? | | ?????????????????????????????????????????????????? | | ?????????????????????BB????BB????????????????????? | | ?????????????????????BB????BB????????????????????? | | ?????????????????????????????????????????????????? | | ?????????????????????????????????????????????????? | | ?????????????????????????????????????????????????? | | ?????????????????????????????????????????????????? | | ???????????????????#""""""""""#??????????????????? | | ???????????????????# #??????????????????? | | ???????????????????# #??????????????????? | | ???????????????????# #??????????????????? | | ???????????????????# "" #??????????????????? | | ???????????????????# "@ #??????????????????? | | ???????????????????# #??????????????????? | | ???????????????????# #??????????????????? | | ???????????????????# #??????????????????? | | ??????????????????## ##?????????????????? | | ??????????????????# #?????????????????? | | ??????????????????##"" ##?????????????????? | | ???????????????????#"" #??????????????????? | | ???????????????????#"" #??????????????????? | | ???????????????????#T #??????????????????? | | ???????????????????#"" #??????????????????? | | ??????######???????#"" #??????????????????? | | ??????# #########"" ####???????????????? | | ??????# ????? | | ??????# ????? | | ??????# ################################??????? | | ??????## ##?##############??????????????????????? | | ???????# #??# #??????????????????????? | | #??????# #??# #??????????????????????? | | #??????# #??# ]#??????????????????????? | | #??????# #??# #??????????????????????? | | #??????# #??# #??????????????????????? | | ######## ##?#######+######??????????????????????? | | ####### #??????????????????????????? | | "" #######????????????????????? | +----------------------------------------------------+ Best States ------------- Heat Dissipation 90 Energy Generation 29 Energy Capacity 350 Matter Stores 397 Matter Capacity 600 Sight Range 24 Terrain Scan Density 10 Jamming Range 22 Base Temperature (-) 200 Corruption Block 15 Armor Coverage 800 Resistance: KI 40 Resistance: TH 50 Core Shielding 30 Weapon Shielding 66 Weapon Cycling 20 Evasion (%) 80 Targeting Accuracy 24 Target Analysis 12 Core Analysis 9 Recoil Reduction 4 Matter Filtering 30 Energy Filtering 50 Kinecelleration 30 Offensive Hacking 12 Defensive Hacking 12 Item Schematics ----------------- Corruption Screen | -7/Factory | Hacked Robot Schematics ------------------ None Fabricated ------------ Corruption Screen | x2 | -6/Factory Repaired ---------- Lgt. Treads | 17% | -8/Materials Lgt. Treads | 47% | -8/Materials Lgt. Assault Rifle | 72% | -8/Materials Lgt. Treads | 14% | -7/Factory Mass Driver | 8% | -4/Factory Alien Tech Used ----------------- None Achievements -------------- Dodgeball, But With Guns Epsilon Run Knowing Is Half The Battle Challenges ------------ None Game ------ Seed PartitionBiocellDatajack Manual? 0 Play Time 05:32:17 Cumulative 57.4 hours Start 2025.06.26 @ 14:47:39 End 2025.06.28 @ 03:53:56 Sessions 15 Manual Loads 0 Difficulty Rogue Special Mode None Game No. 113 Rogue 113 Adventurer 0 Explorer 0 Win Type 0 Total 1 Types 1/0/0/0/0/0/0/0/0/0 Lore% 14 Gallery% 32 Achievement% 31 Wizard Run 0 Options --------- Layout 1 ASCII 0 Keyboard 0 Movement Mouse Keybinds 0 Fullscreen 1 Font 20/SmallcapsGlow Map View 54x42 Zoom Use 0% Tactical HUD 1 Map Filters NONE Filters NONE Steam 0 RUN: b0749541-deeb-48f6-8c64-be4eb446c3f8